[Event "*** Titled Tuesday Blitz"]
[Site "Chess.com"]
[Date "2020.11.10"]
[Round "2"]
[White "Deepweb2020"]
[Black "Makswolf200817"]
[Result "0-1"]
[WhiteElo "2240"]
[BlackElo "2452"]
[TimeControl "180+1"]
[EndTime "10:22:36 PST"]
[Termination "Makswolf200817 won by checkmate"]

1. d4 {[%clk 0:03:00.9]} 1... d5 {[%clk 0:02:04.7]} 2. c4 {[%clk 0:02:58.2]}
2... e6 {[%clk 0:02:04.4]} 3. g3 {[%clk 0:02:58.2]} 3... Nf6 {[%clk 0:02:04]} 4.
Nf3 {[%clk 0:02:56.4]} 4... Bb4+ {[%clk 0:02:04.4]} 5. Bd2 {[%clk 0:02:55.9]}
5... Be7 {[%clk 0:02:05]} 6. Bg2 {[%clk 0:02:55.3]} 6... O-O {[%clk 0:02:05.5]}
7. O-O {[%clk 0:02:55.4]} 7... Nbd7 {[%clk 0:02:06.1]} 8. Qc2 {[%clk 0:02:52.8]}
8... Ne4 {[%clk 0:02:05.1]} 9. Bf4 {[%clk 0:02:52.7]} 9... c6 {[%clk 0:02:04.5]}
10. Nbd2 {[%clk 0:02:51.3]} 10... f5 {[%clk 0:02:04.3]} 11. Be5 {[%clk
0:02:39.1]} 11... Nxe5 {[%clk 0:02:00.3]} 12. Nxe5 {[%clk 0:02:40]} 12... Bf6
{[%clk 0:01:59.4]} 13. Ndf3 {[%clk 0:02:30.4]} 13... g5 {[%clk 0:01:54.5]} 14.
Rfd1 {[%clk 0:02:08.7]} 14... Bd7 {[%clk 0:01:44.2]} 15. e3 {[%clk 0:02:04.6]}
15... Be8 {[%clk 0:01:43.2]} 16. b4 {[%clk 0:01:59.8]} 16... Bh5 {[%clk
0:01:40.7]} 17. Rd3 {[%clk 0:01:55.9]} 17... Qe7 {[%clk 0:01:39.3]} 18. c5
{[%clk 0:01:55.4]} 18... Bg6 {[%clk 0:01:33.8]} 19. Nxg6 {[%clk 0:01:46]} 19...
hxg6 {[%clk 0:01:34.7]} 20. a4 {[%clk 0:01:44.1]} 20... a6 {[%clk 0:01:31]} 21.
Rb1 {[%clk 0:01:43.5]} 21... Qd7 {[%clk 0:01:29.4]} 22. Nd2 {[%clk 0:01:39.6]}
22... g4 {[%clk 0:01:26.6]} 23. Rdb3 {[%clk 0:01:33.3]} 23... Ng5 {[%clk
0:01:13.1]} 24. b5 {[%clk 0:01:30.3]} 24... axb5 {[%clk 0:01:04]} 25. axb5
{[%clk 0:01:31.2]} 25... Rf7 {[%clk 0:01:02]} 26. bxc6 {[%clk 0:01:23.1]} 26...
bxc6 {[%clk 0:01:00.2]} 27. Rb8+ {[%clk 0:01:21.3]} 27... Rxb8 {[%clk
0:01:00.5]} 28. Rxb8+ {[%clk 0:01:21.1]} 28... Kg7 {[%clk 0:01:01.4]} 29. Qb2
{[%clk 0:01:12.4]} 29... Qa7 {[%clk 0:00:58.9]} 30. Rb6 {[%clk 0:01:09.7]} 30...
Rc7 {[%clk 0:00:57.1]} 31. Bf1 {[%clk 0:01:09.2]} 31... Qa5 {[%clk 0:00:54]} 32.
Qb4 {[%clk 0:01:04.2]} 32... Qa2 {[%clk 0:00:48.8]} 33. Qb2 {[%clk 0:01:04]}
33... Qa5 {[%clk 0:00:48.5]} 34. Kg2 {[%clk 0:00:55.4]} 34... Kh6 {[%clk
0:00:38.8]} 35. Rb3 {[%clk 0:00:54.9]} 35... Nf7 {[%clk 0:00:36]} 36. Ra3 {[%clk
0:00:52]} 36... Qxc5 {[%clk 0:00:30.4]} 37. Rc3 {[%clk 0:00:46.6]} 37... Qd6
{[%clk 0:00:29.5]} 38. Qc2 {[%clk 0:00:46.4]} 38... Qd7 {[%clk 0:00:27.3]} 39.
Bb5 {[%clk 0:00:41.9]} 39... Nd8 {[%clk 0:00:27.2]} 40. Nb3 {[%clk 0:00:40.1]}
40... Qd6 {[%clk 0:00:26.2]} 41. Na5 {[%clk 0:00:35.7]} 41... Qb4 {[%clk
0:00:18]} 42. Nxc6 {[%clk 0:00:21.9]} 42... Qxb5 {[%clk 0:00:15.4]} 43. Nxd8
{[%clk 0:00:17.9]} 43... Rxc3 {[%clk 0:00:15.2]} 44. Qxc3 {[%clk 0:00:18.8]}
44... Bxd8 {[%clk 0:00:15.5]} 45. Qc8 {[%clk 0:00:19.5]} 45... Qe8 {[%clk
0:00:15.3]} 46. Kg1 {[%clk 0:00:16.1]} 46... Kg7 {[%clk 0:00:15.3]} 47. Kg2
{[%clk 0:00:15.9]} 47... Qe7 {[%clk 0:00:14.4]} 48. Kg1 {[%clk 0:00:15.4]} 48...
Bc7 {[%clk 0:00:14.6]} 49. Kg2 {[%clk 0:00:14.4]} 49... Bd6 {[%clk 0:00:14.8]}
50. Kg1 {[%clk 0:00:14]} 50... e5 {[%clk 0:00:11.9]} 51. dxe5 {[%clk 0:00:12.6]}
51... Qxe5 {[%clk 0:00:10.7]} 52. Qd7+ {[%clk 0:00:12.7]} 52... Be7 {[%clk
0:00:10.2]} 53. Kf1 {[%clk 0:00:10.4]} 53... Kf7 {[%clk 0:00:10.5]} 54. Kg1
{[%clk 0:00:10.4]} 54... Qe4 {[%clk 0:00:10.2]} 55. Qc6 {[%clk 0:00:08.9]} 55...
Qb1+ {[%clk 0:00:07.6]} 56. Kg2 {[%clk 0:00:09]} 56... Qe4+ {[%clk 0:00:08.5]}
57. Kg1 {[%clk 0:00:09.4]} 57... Qe6 {[%clk 0:00:09.4]} 58. Qc2 {[%clk
0:00:07.5]} 58... Qd6 {[%clk 0:00:08.9]} 59. Qd3 {[%clk 0:00:07.2]} 59... Qc5
{[%clk 0:00:08.6]} 60. Kg2 {[%clk 0:00:06]} 60... Bf6 {[%clk 0:00:08.8]} 61. Qd1
{[%clk 0:00:05.7]} 61... Qc4 {[%clk 0:00:08.6]} 62. Qb1 {[%clk 0:00:04.6]} 62...
Qe4+ {[%clk 0:00:07.9]} 63. Qxe4 {[%clk 0:00:03.8]} 63... dxe4 {[%clk
0:00:08.8]} 64. Kf1 {[%clk 0:00:04.1]} 64... Ke6 {[%clk 0:00:09.2]} 65. Ke2
{[%clk 0:00:04.5]} 65... Kd5 {[%clk 0:00:10.1]} 66. Kd2 {[%clk 0:00:05.4]} 66...
Kc4 {[%clk 0:00:10.3]} 67. Kc2 {[%clk 0:00:06]} 67... Bg7 {[%clk 0:00:10.3]} 68.
Kd2 {[%clk 0:00:05.5]} 68... Bh6 {[%clk 0:00:10.6]} 69. Kc2 {[%clk 0:00:05.6]}
69... g5 {[%clk 0:00:11]} 70. Kd2 {[%clk 0:00:06]} 70... f4 {[%clk 0:00:11.4]}
71. gxf4 {[%clk 0:00:05.4]} 71... gxf4 {[%clk 0:00:12.3]} 72. Ke2 {[%clk
0:00:04.5]} 72... f3+ {[%clk 0:00:10.4]} 73. Kf1 {[%clk 0:00:04.6]} 73... Kd3
{[%clk 0:00:09.4]} 74. Ke1 {[%clk 0:00:04.8]} 74... Bxe3 {[%clk 0:00:08.7]} 75.
fxe3 {[%clk 0:00:03.3]} 75... Kxe3 {[%clk 0:00:09.6]} 76. Kf1 {[%clk 0:00:04.2]}
76... f2 {[%clk 0:00:08.9]} 77. h3 {[%clk 0:00:03.5]} 77... g3 {[%clk
0:00:08.4]} 78. h4 {[%clk 0:00:03.8]} 78... Kf4 {[%clk 0:00:08.3]} 79. h5 {[%clk
0:00:03.9]} 79... Kg5 {[%clk 0:00:07.1]} 80. h6 {[%clk 0:00:04.2]} 80... Kxh6
{[%clk 0:00:06.9]} 81. Kg2 {[%clk 0:00:05.1]} 81... e3 {[%clk 0:00:06.8]} 82.
Kf1 {[%clk 0:00:06]} 82... Kg5 {[%clk 0:00:05.7]} 83. Kg2 {[%clk 0:00:06.6]}
83... e2 {[%clk 0:00:05.6]} 84. Kxg3 {[%clk 0:00:04.5]} 84... e1=Q {[%clk
0:00:04.7]} 85. Kg2 {[%clk 0:00:05.4]} 85... f1=Q+ {[%clk 0:00:04.7]} 86. Kh2
{[%clk 0:00:05.5]} 86... Qe5# {[%clk 0:00:03.7]} 0-1

[Event "*** Titled Tuesday Blitz"]
[Site "Chess.com"]
[Date "2020.11.10"]
[Round "2"]
[White "Loy_Konstantin"]
[Black "ChessFrois"]
[Result "1-0"]
[WhiteElo "2383"]
[BlackElo "2076"]
[TimeControl "180+1"]
[EndTime "10:22:41 PST"]
[Termination "Loy_Konstantin won by checkmate"]

1. e4 {[%clk 0:03:00.9]} 1... Nf6 {[%clk 0:03:00.7]} 2. e5 {[%clk 0:03:00.7]}
2... Nd5 {[%clk 0:03:01.2]} 3. Nf3 {[%clk 0:03:00.3]} 3... d6 {[%clk 0:03:01.6]}
4. d4 {[%clk 0:02:59.9]} 4... Bg4 {[%clk 0:02:59.5]} 5. Be2 {[%clk 0:02:59.2]}
5... Nc6 {[%clk 0:02:58.9]} 6. c4 {[%clk 0:02:57.2]} 6... Nb6 {[%clk 0:02:58.6]}
7. O-O {[%clk 0:02:24.5]} 7... g6 {[%clk 0:02:57.7]} 8. exd6 {[%clk 0:02:16.7]}
8... cxd6 {[%clk 0:02:58.6]} 9. d5 {[%clk 0:02:04.9]} 9... Bxf3 {[%clk
0:02:58.1]} 10. gxf3 {[%clk 0:01:56.5]} 10... Ne5 {[%clk 0:02:58.7]} 11. f4
{[%clk 0:01:53.7]} 11... Ned7 {[%clk 0:02:58.4]} 12. Qd4 {[%clk 0:01:44.8]}
12... Nf6 {[%clk 0:02:49.6]} 13. Nc3 {[%clk 0:01:26.1]} 13... Bg7 {[%clk
0:02:48.7]} 14. Be3 {[%clk 0:01:18.5]} 14... O-O {[%clk 0:02:46.6]} 15. Qd2
{[%clk 0:01:12.4]} 15... Rc8 {[%clk 0:02:32.4]} 16. b3 {[%clk 0:01:11.8]} 16...
a6 {[%clk 0:02:26.8]} 17. Rac1 {[%clk 0:01:10.2]} 17... Nbd7 {[%clk 0:02:10.3]}
18. Kh1 {[%clk 0:01:06.8]} 18... Qa5 {[%clk 0:02:00.2]} 19. Rfd1 {[%clk
0:01:02.1]} 19... Nc5 {[%clk 0:01:54]} 20. Bd3 {[%clk 0:00:56.6]} 20... Qc7
{[%clk 0:01:31.7]} 21. f5 {[%clk 0:00:48.5]} 21... Qd7 {[%clk 0:01:31.3]} 22.
fxg6 {[%clk 0:00:47.9]} 22... hxg6 {[%clk 0:01:32.2]} 23. Qe2 {[%clk 0:00:26.6]}
23... Qh3 {[%clk 0:01:29.3]} 24. f3 {[%clk 0:00:22.4]} 24... Nh5 {[%clk
0:01:24.9]} 25. Qg2 {[%clk 0:00:17.6]} 25... Qxg2+ {[%clk 0:01:17.4]} 26. Kxg2
{[%clk 0:00:17.5]} 26... Be5 {[%clk 0:01:16.6]} 27. Ne4 {[%clk 0:00:15.4]} 27...
Nf4+ {[%clk 0:01:12.8]} 28. Bxf4 {[%clk 0:00:15]} 28... Bxf4 {[%clk 0:01:13.7]}
29. Rc2 {[%clk 0:00:14.1]} 29... Kg7 {[%clk 0:01:13.3]} 30. Nxc5 {[%clk
0:00:13.8]} 30... Rxc5 {[%clk 0:01:13]} 31. Re2 {[%clk 0:00:13.4]} 31... Kf6
{[%clk 0:01:11.7]} 32. Rde1 {[%clk 0:00:12.7]} 32... Rc7 {[%clk 0:01:09.2]} 33.
h3 {[%clk 0:00:12.8]} 33... Rh8 {[%clk 0:01:08.8]} 34. Re4 {[%clk 0:00:12.4]}
34... Bg5 {[%clk 0:01:03.6]} 35. Rb1 {[%clk 0:00:12.9]} 35... Kg7 {[%clk
0:01:00.4]} 36. b4 {[%clk 0:00:12.7]} 36... f5 {[%clk 0:00:58]} 37. Re6 {[%clk
0:00:11.1]} 37... Bf6 {[%clk 0:00:55.7]} 38. Re2 {[%clk 0:00:10.6]} 38... Rh4
{[%clk 0:00:54]} 39. Rc2 {[%clk 0:00:09.8]} 39... Bd4 {[%clk 0:00:51.1]} 40. a3
{[%clk 0:00:09.5]} 40... Rc8 {[%clk 0:00:50.7]} 41. Rh1 {[%clk 0:00:08]} 41...
Kf6 {[%clk 0:00:49]} 42. Be2 {[%clk 0:00:06.5]} 42... Rh5 {[%clk 0:00:44]} 43.
Bd3 {[%clk 0:00:06.7]} 43... Rg5+ {[%clk 0:00:43.8]} 44. Kf1 {[%clk 0:00:05.7]}
44... Rh8 {[%clk 0:00:41.6]} 45. Rg2 {[%clk 0:00:06]} 45... Rgh5 {[%clk
0:00:39.8]} 46. Ke2 {[%clk 0:00:03.7]} 46... Rxh3 {[%clk 0:00:38.6]} 47. Rxh3
{[%clk 0:00:04.6]} 47... Rxh3 {[%clk 0:00:38.8]} 48. Bc2 {[%clk 0:00:05]} 48...
Rh1 {[%clk 0:00:37]} 49. Ba4 {[%clk 0:00:04.4]} 49... Ra1 {[%clk 0:00:32.4]} 50.
Kd3 {[%clk 0:00:03.2]} 50... Be5 {[%clk 0:00:24.2]} 51. Bd7 {[%clk 0:00:04.1]}
51... Rxa3+ {[%clk 0:00:23.3]} 52. Ke2 {[%clk 0:00:04.5]} 52... Rc3 {[%clk
0:00:17.5]} 53. b5 {[%clk 0:00:04.1]} 53... Rxc4 {[%clk 0:00:16.6]} 54. bxa6
{[%clk 0:00:04.6]} 54... bxa6 {[%clk 0:00:17.5]} 55. Kf1 {[%clk 0:00:05.2]}
55... Rc1+ {[%clk 0:00:17]} 56. Ke2 {[%clk 0:00:05.1]} 56... a5 {[%clk
0:00:16.8]} 57. Kd3 {[%clk 0:00:04.9]} 57... Ra1 {[%clk 0:00:13.8]} 58. Rc2
{[%clk 0:00:04.4]} 58... Ra3+ {[%clk 0:00:11.5]} 59. Ke2 {[%clk 0:00:04.3]}
59... Bd4 {[%clk 0:00:11.2]} 60. Rc8 {[%clk 0:00:04.2]} 60... Ke5 {[%clk
0:00:11]} 61. Re8 {[%clk 0:00:03.4]} 61... Re3+ {[%clk 0:00:07]} 62. Kf2 {[%clk
0:00:03.6]} 62... Kxd5 {[%clk 0:00:07.1]} 63. Kg2 {[%clk 0:00:03.2]} 63... Re2+
{[%clk 0:00:06.9]} 64. Kg3 {[%clk 0:00:03.2]} 64... Be5+ {[%clk 0:00:06.2]} 65.
f4 {[%clk 0:00:02.7]} 65... a4 {[%clk 0:00:07.1]} 66. fxe5 {[%clk 0:00:02.5]}
66... Re3+ {[%clk 0:00:07.6]} 67. Kf2 {[%clk 0:00:02.4]} 67... Rxe5 {[%clk
0:00:08.5]} 68. Bxa4 {[%clk 0:00:02.6]} 68... Re4 {[%clk 0:00:08.3]} 69. Bd7
{[%clk 0:00:03.2]} 69... Rf4+ {[%clk 0:00:07.7]} 70. Ke3 {[%clk 0:00:03]} 70...
Re4+ {[%clk 0:00:08]} 71. Kd3 {[%clk 0:00:03.3]} 71... Re5 {[%clk 0:00:08.4]}
72. Rc8 {[%clk 0:00:02.7]} 72... Re4 {[%clk 0:00:07]} 73. Bc6+ {[%clk
0:00:02.5]} 73... Ke5 {[%clk 0:00:07.7]} 74. Bxe4 {[%clk 0:00:02.5]} 74... fxe4+
{[%clk 0:00:08.6]} 75. Ke3 {[%clk 0:00:01.9]} 75... d5 {[%clk 0:00:09.5]} 76.
Ke2 {[%clk 0:00:02.1]} 76... e6 {[%clk 0:00:09.3]} 77. Rg8 {[%clk 0:00:03]}
77... Kf5 {[%clk 0:00:09]} 78. Ke3 {[%clk 0:00:03.9]} 78... g5 {[%clk
0:00:08.1]} 79. Rd8 {[%clk 0:00:04.6]} 79... Ke5 {[%clk 0:00:08]} 80. Rg8 {[%clk
0:00:04.7]} 80... Kf5 {[%clk 0:00:08.2]} 81. Rf8+ {[%clk 0:00:04.6]} 81... Ke5
{[%clk 0:00:08.6]} 82. Ke2 {[%clk 0:00:05]} 82... d4 {[%clk 0:00:07.6]} 83. Ra8
{[%clk 0:00:04.7]} 83... Kf4 {[%clk 0:00:07.6]} 84. Ra4 {[%clk 0:00:03.4]} 84...
d3+ {[%clk 0:00:07.6]} 85. Kd2 {[%clk 0:00:03.7]} 85... e5 {[%clk 0:00:08.1]}
86. Ra8 {[%clk 0:00:03.6]} 86... g4 {[%clk 0:00:07.2]} 87. Rf8+ {[%clk
0:00:03.4]} 87... Kg3 {[%clk 0:00:07.5]} 88. Ke3 {[%clk 0:00:04.3]} 88... Kg2
{[%clk 0:00:05.4]} 89. Re8 {[%clk 0:00:04]} 89... g3 {[%clk 0:00:04.5]} 90. Rxe5
{[%clk 0:00:04.4]} 90... Kf1 {[%clk 0:00:04.9]} 91. Rf5+ {[%clk 0:00:04.1]}
91... Ke1 {[%clk 0:00:03.7]} 92. Rg5 {[%clk 0:00:03.5]} 92... d2 {[%clk
0:00:04]} 93. Rxg3 {[%clk 0:00:02.6]} 93... d1=Q {[%clk 0:00:04]} 94. Rg1#
{[%clk 0:00:02.6]} 1-0

[Event "*** Titled Tuesday Blitz"]
[Site "Chess.com"]
[Date "2020.11.10"]
[Round "2"]
[White "Bulldog167"]
[Black "Mr_Sinigami"]
[Result "1/2-1/2"]
[WhiteElo "2736"]
[BlackElo "2522"]
[TimeControl "180+1"]
[EndTime "10:23:25 PST"]
[Termination "Game drawn by 50-move rule"]

1. d4 {[%clk 0:03:00.9]} 1... Nf6 {[%clk 0:02:58.2]} 2. c4 {[%clk 0:03:01.4]}
2... g6 {[%clk 0:02:55.1]} 3. Nc3 {[%clk 0:03:01.6]} 3... Bg7 {[%clk 0:02:55.3]}
4. e4 {[%clk 0:03:01.7]} 4... d6 {[%clk 0:02:55.1]} 5. h3 {[%clk 0:03:01.9]}
5... O-O {[%clk 0:02:54.9]} 6. Be3 {[%clk 0:03:02.4]} 6... e5 {[%clk 0:02:53.6]}
7. d5 {[%clk 0:03:02.4]} 7... a5 {[%clk 0:02:53]} 8. g4 {[%clk 0:03:02.4]} 8...
Na6 {[%clk 0:02:52.7]} 9. Nge2 {[%clk 0:03:03]} 9... h5 {[%clk 0:02:50.8]} 10.
f3 {[%clk 0:03:02.4]} 10... Nh7 {[%clk 0:02:50.2]} 11. Qd2 {[%clk 0:03:01.3]}
11... h4 {[%clk 0:02:49.6]} 12. Rg1 {[%clk 0:02:57.1]} 12... Bd7 {[%clk
0:02:33]} 13. Nc1 {[%clk 0:02:55.8]} 13... Nc5 {[%clk 0:02:29.2]} 14. Nd3 {[%clk
0:02:55.1]} 14... b6 {[%clk 0:02:28]} 15. O-O-O {[%clk 0:02:54.4]} 15... a4
{[%clk 0:02:27.2]} 16. Kb1 {[%clk 0:02:53.8]} 16... Qe7 {[%clk 0:02:12.5]} 17.
Be2 {[%clk 0:02:46.1]} 17... Nxd3 {[%clk 0:02:08.9]} 18. Bxd3 {[%clk 0:02:46.3]}
18... Rfb8 {[%clk 0:02:03.9]} 19. g5 {[%clk 0:02:40.3]} 19... Nf8 {[%clk
0:01:41]} 20. Qf2 {[%clk 0:02:37.4]} 20... Be8 {[%clk 0:01:40.6]} 21. Qxh4
{[%clk 0:02:36]} 21... Nd7 {[%clk 0:01:40.3]} 22. Qf2 {[%clk 0:02:30]} 22... Nc5
{[%clk 0:01:39.8]} 23. Be2 {[%clk 0:02:18.1]} 23... c6 {[%clk 0:01:24.1]} 24.
dxc6 {[%clk 0:02:15.5]} 24... Bxc6 {[%clk 0:01:23.4]} 25. h4 {[%clk 0:02:15.9]}
25... Ne6 {[%clk 0:01:21.8]} 26. h5 {[%clk 0:02:12.8]} 26... Nd4 {[%clk
0:01:19.8]} 27. Bd3 {[%clk 0:02:05.1]} 27... b5 {[%clk 0:01:08.8]} 28. Nd5
{[%clk 0:01:54.9]} 28... Bxd5 {[%clk 0:01:06.5]} 29. cxd5 {[%clk 0:01:55.7]}
29... b4 {[%clk 0:00:56.9]} 30. Rc1 {[%clk 0:01:43.9]} 30... gxh5 {[%clk
0:00:36.7]} 31. Bxd4 {[%clk 0:01:42.1]} 31... exd4 {[%clk 0:00:36]} 32. f4
{[%clk 0:01:42.7]} 32... Rc8 {[%clk 0:00:32.3]} 33. Qf3 {[%clk 0:01:40.2]} 33...
b3 {[%clk 0:00:17.8]} 34. a3 {[%clk 0:01:39.5]} 34... Rc3 {[%clk 0:00:17.7]} 35.
e5 {[%clk 0:01:21.6]} 35... Rac8 {[%clk 0:00:14.5]} 36. bxc3 {[%clk 0:01:16.8]}
36... dxc3 {[%clk 0:00:14.2]} 37. Rxc3 {[%clk 0:01:07.2]} 37... Rxc3 {[%clk
0:00:10.8]} 38. Bh7+ {[%clk 0:01:07.6]} 38... Kxh7 {[%clk 0:00:11.2]} 39. Qxc3
{[%clk 0:01:08.4]} 39... dxe5 {[%clk 0:00:11.6]} 40. f5 {[%clk 0:01:06.9]} 40...
Qxa3 {[%clk 0:00:09.3]} 41. g6+ {[%clk 0:01:00.6]} 41... fxg6 {[%clk 0:00:08.2]}
42. fxg6+ {[%clk 0:01:01.4]} 42... Kg8 {[%clk 0:00:08.4]} 43. Qc8+ {[%clk
0:01:00.8]} 43... Bf8 {[%clk 0:00:08.4]} 44. Qe6+ {[%clk 0:00:59.6]} 44... Kh8
{[%clk 0:00:08.5]} 45. Qxe5+ {[%clk 0:00:48.8]} 45... Bg7 {[%clk 0:00:08.1]} 46.
Qe8+ {[%clk 0:00:48.7]} 46... Qf8 {[%clk 0:00:08.5]} 47. Qxf8+ {[%clk
0:00:45.3]} 47... Bxf8 {[%clk 0:00:09.4]} 48. Kb2 {[%clk 0:00:27.9]} 48... Kg7
{[%clk 0:00:07.6]} 49. Rg5 {[%clk 0:00:27.2]} 49... Bd6 {[%clk 0:00:06.9]} 50.
Rxh5 {[%clk 0:00:23.7]} 50... Kxg6 {[%clk 0:00:07]} 51. Rh4 {[%clk 0:00:23.7]}
51... Kf5 {[%clk 0:00:06.7]} 52. Rxa4 {[%clk 0:00:21.3]} 52... Ke5 {[%clk
0:00:06.9]} 53. Ra5 {[%clk 0:00:21.8]} 53... Kd4 {[%clk 0:00:07.2]} 54. Kxb3
{[%clk 0:00:21.7]} 54... Bc5 {[%clk 0:00:07.6]} 55. Ra8 {[%clk 0:00:10]} 55...
Kxd5 {[%clk 0:00:07.5]} 56. Rh8 {[%clk 0:00:10.9]} 56... Kd4 {[%clk 0:00:07.1]}
57. Rh5 {[%clk 0:00:11.5]} 57... Bd6 {[%clk 0:00:06.4]} 58. Rh1 {[%clk 0:00:11]}
58... Bc5 {[%clk 0:00:05.8]} 59. Rd1+ {[%clk 0:00:11.9]} 59... Ke4 {[%clk
0:00:05.7]} 60. Kc4 {[%clk 0:00:12.4]} 60... Bf2 {[%clk 0:00:05.4]} 61. Rd8
{[%clk 0:00:12.4]} 61... Bg3 {[%clk 0:00:05.6]} 62. Re8+ {[%clk 0:00:13.3]}
62... Be5 {[%clk 0:00:05.7]} 63. Re7 {[%clk 0:00:13.7]} 63... Kf5 {[%clk
0:00:04.9]} 64. Kd5 {[%clk 0:00:14.6]} 64... Bf6 {[%clk 0:00:05]} 65. Rf7 {[%clk
0:00:14.9]} 65... Kg6 {[%clk 0:00:05.1]} 66. Ke6 {[%clk 0:00:15.8]} 66... Bg5
{[%clk 0:00:04.7]} 67. Rf2 {[%clk 0:00:13.4]} 67... Be3 {[%clk 0:00:04.4]} 68.
Rg2+ {[%clk 0:00:14.3]} 68... Kh7 {[%clk 0:00:03.6]} 69. Kf7 {[%clk 0:00:13.9]}
69... Kh6 {[%clk 0:00:03.4]} 70. Kf6 {[%clk 0:00:14.4]} 70... Bd4+ {[%clk
0:00:02]} 71. Kf5 {[%clk 0:00:15]} 71... Bc3 {[%clk 0:00:02.2]} 72. Rg6+ {[%clk
0:00:14.7]} 72... Kh7 {[%clk 0:00:02.1]} 73. Rc6 {[%clk 0:00:15.1]} 73... Bd4
{[%clk 0:00:02.3]} 74. Kg5 {[%clk 0:00:14]} 74... Bb2 {[%clk 0:00:02.2]} 75.
Rc7+ {[%clk 0:00:13.7]} 75... Kg8 {[%clk 0:00:02.5]} 76. Rb7 {[%clk 0:00:10.9]}
76... Bc3 {[%clk 0:00:01.8]} 77. Rb3 {[%clk 0:00:10.8]} 77... Bd4 {[%clk
0:00:01.7]} 78. Rb7 {[%clk 0:00:11.7]} 78... Bc3 {[%clk 0:00:01.9]} 79. Kg6
{[%clk 0:00:12.1]} 79... Kf8 {[%clk 0:00:02.3]} 80. Rc7 {[%clk 0:00:12.6]} 80...
Bd4 {[%clk 0:00:02.4]} 81. Kf5 {[%clk 0:00:11.7]} 81... Bb2 {[%clk 0:00:02.4]}
82. Rb7 {[%clk 0:00:12.6]} 82... Bc3 {[%clk 0:00:02.4]} 83. Ke6 {[%clk
0:00:13.3]} 83... Bd4 {[%clk 0:00:02.5]} 84. Rc7 {[%clk 0:00:13.1]} 84... Bb2
{[%clk 0:00:02.4]} 85. Rc8+ {[%clk 0:00:13.4]} 85... Kg7 {[%clk 0:00:02.2]} 86.
Rc2 {[%clk 0:00:14.3]} 86... Bd4 {[%clk 0:00:02]} 87. Rg2+ {[%clk 0:00:15.1]}
87... Kf8 {[%clk 0:00:02.2]} 88. Rg4 {[%clk 0:00:15.3]} 88... Bc3 {[%clk
0:00:02.4]} 89. Rc4 {[%clk 0:00:15.4]} 89... Bb2 {[%clk 0:00:02.5]} 90. Rf4+
{[%clk 0:00:15.5]} 90... Kg7 {[%clk 0:00:02.4]} 91. Rf2 {[%clk 0:00:16.4]} 91...
Bc3 {[%clk 0:00:02.2]} 92. Rf5 {[%clk 0:00:16.7]} 92... Bd4 {[%clk 0:00:02.3]}
93. Ke7 {[%clk 0:00:16.4]} 93... Kg6 {[%clk 0:00:02.2]} 94. Rd5 {[%clk
0:00:16.5]} 94... Bc3 {[%clk 0:00:02.4]} 95. Ke6 {[%clk 0:00:17.4]} 95... Kg7
{[%clk 0:00:02.4]} 96. Rg5+ {[%clk 0:00:17.2]} 96... Kf8 {[%clk 0:00:02.3]} 97.
Rg3 {[%clk 0:00:15.7]} 97... Bb2 {[%clk 0:00:02.2]} 98. Rb3 {[%clk 0:00:12.3]}
98... Bd4 {[%clk 0:00:02.3]} 99. Kd5 {[%clk 0:00:13.2]} 99... Ba1 {[%clk
0:00:02]} 100. Rb7 {[%clk 0:00:14.1]} 100... Ke8 {[%clk 0:00:01.9]} 101. Ra7
{[%clk 0:00:15]} 101... Bb2 {[%clk 0:00:01.5]} 102. Ke6 {[%clk 0:00:15.9]}
102... Kf8 {[%clk 0:00:01.8]} 103. Rf7+ {[%clk 0:00:15.8]} 103... Kg8 {[%clk
0:00:01.3]} 104. Rb7 {[%clk 0:00:16.7]} 104... Bc3 {[%clk 0:00:01.7]} 105. Rb8+
{[%clk 0:00:17.5]} 105... Kg7 {[%clk 0:00:01.6]} 1/2-1/2